Cogmind - Beta 11.1 *** ADVENTURER MODE // 2022.05.02 @ 21:30:52 Player: An Result: Destroyed by Y-45 Defender with Beam Rifle Performance ------------- Evolutions (1) 500 Regions Visited (2) 400 Robots Destroyed (53) 265 Value Destroyed (1024) 1024 Prototype IDs (1) 20 Alien Tech Used (0) 0 Bonus (2) 2 TOTAL SCORE: 2211 Bonus ------- High Alert Combat Kills 2 Cogmind --------- Core Integrity 0/400 Matter 274/300 Energy 244/250 System Corruption 0% Temperature Cool (57) Movement Walking (120) Location -9/Materials Parts ------- > --- POWER (1) -------- Ion Engine > --- PROPULSION (4) --- Aluminum Leg Aluminum Leg Aluminum Leg Hover Unit > --- UTILITY (2) ------ Heat Sink Medium Armor Plating > --- WEAPON (2) ------- Improved Medium Laser Light Cannon > --- INVENTORY (5) ---- Aluminum Leg Aluminum Leg Medium Storage Unit Improved Medium Laser Peak State ------------ > --- POWER ------------ Improved Ion Engine > --- PROPULSION ------- Flight Unit Flight Unit Flight Unit Flight Unit > --- UTILITY ---------- Structural Scanner > --- WEAPON ----------- Improved Medium Laser Improved Medium Laser > --- INVENTORY -------- Medium Storage Unit Improved Medium Laser [Rating: 13] Favorites ----------- Power Light Ion Engine Engine Light Ion Engine Propulsion Aluminum Leg Leg Aluminum Leg Hover Unit Hover Unit Flight Unit Flight Unit Utility Structural Scanner Device Structural Scanner Storage Small Storage Unit Protection Medium Armor Plating Weapon Improved Medium Laser Energy Gun Improved Medium Laser Ballistic Gun Assault Rifle Ballistic Cannon Light Cannon Build | -11 -10 -9 ------- Run | Scr Mat Mat Slots Evolved 2 | . . 2 Power . | . . . Propulsion 2 | . . 2 Utility . | . . . Weapon . | . . . Parts Attached 31 | 7 4 20 Power 4 | 1 . 3 Engine 4 | 1 . 3 Core . | . . . Reactor . | . . . Propulsion 12 | 2 . 10 Treads . | . . . Leg 7 | 2 . 5 Wheel . | . . . Hover 1 | . . 1 Flight 4 | . . 4 Utility 6 | 2 2 2 Device 3 | 1 1 1 Storage 2 | 1 1 . Processor . | . . . Hackware . | . . . Protection 1 | . . 1 Artifact . | . . . Weapon 9 | 2 2 5 Energy Gun 7 | 1 2 4 Energy Cannon . | . . . Ballistic Gun 1 | 1 . . Ballistic Cannon 1 | . . 1 Launcher . | . . . Special Weapon . | . . . Impact Weapon . | . . . Slashing Weapon . | . . . Piercing Weapon . | . . . Special Melee Weapon . | . . . Unidentified Prototypes 1 | . 1 . Parts Lost 8 | . 1 7 Power 3 | . 1 2 Propulsion 4 | . . 4 Utility . | . . . Weapon 1 | . . 1 Highest Loss Streak 6 | . 1 6 To Critical Strikes . | . . . Average Slot Usage (%) 86 | . 96 73 Engine 8 | . 10 6 Leg 22 | . 28 15 Flight 6 | . . 15 Device 11 | . 14 9 Storage 8 | . 14 1 Protection 1 | . . 4 Energy Gun 18 | . 18 17 Ballistic Gun 5 | . 9 . Ballistic Cannon 1 | . . 3 Naked Turns . | . . . Heaviest Build 20 | 13 20 19 Greatest Support 40 | 20 20 40 Greatest Overweight (x) 3 | . . 3 Average Overweight (x) . | . . . Largest Inventory Capacity 10 | 8 10 10 Average Capacity 7 | 7 9 5 Most Carried 10 | . 10 9 Average Carried 2 | . 4 3 Final Capacity 10 | 8 10 5 Final Carried 7 | . 7 4 Class Distribution -------------------- 78% | Mutant 12% | Scavenger-Mutant 8% | Scavenger-Sprinter Dominant Class ---------------- Mutant | -10/Materials Scavenger-Mutant | -9/Materials Resources | -11 -10 -9 ----------- Run | Scr Mat Mat Matter Collected 836 | 345 121 370 Remotely . | . . . Salvage Created 1587 | 315 522 750 Parts 114 | 38 31 45 Haulers Intercepted 2 | . 1 1 Recyclers Shooed . | . . . Parts Field Recycled . | . . . Retrieved Matter . | . . . Parts Self-Destructed . | . . . Prevented . | . . . Kills | -11 -10 -9 ------- Run | Scr Mat Mat Combat Hostiles Destroyed 32 | . 12 20 Guns 32 | . 12 20 Classes Destroyed 10 | 3 4 3 Worker 3 | 2 . 1 Tunneler 9 | 9 . . Hauler 2 | . 1 1 Recycler 1 | 1 . . Operator 1 | . . 1 Watcher 5 | . 3 2 Swarmer 12 | . 6 6 Grunt 18 | . 6 12 Brawler 1 | . . 1 Sentry 1 | . . 1 Best Kill Streak 8 | 6 3 8 Combat Bots Only 6 | . 2 6 Max Kills in Single Turn 1 | 1 1 1 Gunslinging . | . . . Exploded . | . . . Melee . | . . . Uniques/NPCs Destroyed . | . . . Combat | -11 -10 -9 -------- Run | Scr Mat Mat Damage Taken 1390 | . 270 1120 Core 476 | . 68 408 Absorbed by Shields . | . . . Core Remaining (%) 86 | 100 72 . Volleys Fired 124 | 25 34 65 Largest 2 | 2 2 2 Hottest 112 | 60 112 112 Shots Fired 221 | 50 68 103 Gun 214 | 50 68 96 Cannon 7 | . . 7 Launcher . | . . . Special . | . . . Kinetic 60 | 25 28 7 Thermal 108 | . 12 96 Explosive . | . . . Electromagnetic 53 | 25 28 . Robot Hit Streak 17 | 8 8 17 Robot Miss Streak 3 | 1 2 3 Penetration Max . | . . . Secondary Targets 2 | . 1 1 Max Gunslinging Chain 1 | . 1 1 Shots Hit Robots 155 | 33 45 77 Core Hits 61 | 13 20 28 Critical Kills 1 | . 1 . Critical Parts Destroyed . | . . . Critical Strikes 5 | . 2 3 Burn 4 | . 1 3 Destroy 1 | . 1 . Melee Attacks . | . . . Impact . | . . . Slashing . | . . . Piercing . | . . . Sneak Attacks . | . . . Combat Hostiles . | . . . Follow-up Attacks . | . . . Damage Inflicted 2566 | 457 685 1424 Guns 2481 | 457 685 1339 Cannons 84 | . . 84 Explosions . | . . . Melee . | . . . Ramming 1 | . . 1 Kinetic 484 | 175 225 84 Thermal 1517 | . 178 1339 Explosive . | . . . Electromagnetic 564 | 282 282 . Impact . | . . . Slashing . | . . . Piercing . | . . . Highest Corruption . | . . . Average Corruption . | . . . Corruption Purged . | . . . Corruption Blocked . | . . . Overload Shots . | . . . Overflow Damage . | . . . Projectiles . | . . . Explosions . | . . . Melee . | . . . Knockbacks . | . . . Impact . | . . . Kinetic . | . . . Secondary . | . . . Self-Inflicted Damage . | . . . Shots . | . . . Rammed 1 | . . 1 Targets Rammed 1 | . . 1 Kicked . | . . . Crushed . | . . . Highest Temperature 661 | . 159 661 Average Temperature 217 | . 39 265 Received Heat Transfer 537 | . 141 396 Effects 37 | . . 37 Shutdowns 7 | . . 7 Energy Bleed 5 | . . 5 Interference 4 | . . 4 Matter Decay 5 | . . 5 Short Circuit 3 | . . 3 Damage (minor) 2 | . . 2 Damage (major) 9 | . . 9 Damage (core) 2 | . . 2 Siege Activations . | . . . Robots Corrupted . | . . . Combat Hostiles . | . . . Parts Fried 2 | . 2 . Impact Corruptions . | . . . Robots Melted . | . . . Combat Hostiles . | . . . Parts Melted 13 | . . 13 Heat Transferred 3478 | . 444 3034 Parts Sabotaged . | . . . Parts Stolen . | . . . Parts Stripped . | . . . Power Chain Reactions . | . . . Missiles Intercepted . | . . . Alert | -11 -10 -9 ------- Run | Scr Mat Mat Peak Influence 410 | 55 265 410 Initial 23 | . 2 23 Average 140 | 28 127 237 Maximum Alert Level 2 | . 1 2 Low Security (%) 69 | 100 79 34 Level 1 29 | . 20 63 Level 2 . | . . 1 Level 3 . | . . . Level 4 . | . . . Level 5 . | . . . High Security . | . . . Max Security . | . . . Squads Dispatched . | . . . Investigation . | . . . Extermination . | . . . Reinforcement . | . . . Assault . | . . . Garrison . | . . . Intercept . | . . . Searches Triggered . | . . . Construction Impeded . | . . . Haulers Reinforced . | . . . Active Scanning Responses . | . . . Cargo Convoy Interrupts . | . . . Stealth | -11 -10 -9 --------- Run | Scr Mat Mat Distress Signals 6 | . 2 4 Communications Jammed . | . . . Distress Signals . | . . . Times Spotted 50 | . 17 33 Peak Tracking Total 13 | . 4 13 Tactical Retreats 4 | . 2 2 Traps | -11 -10 -9 ------- Run | Scr Mat Mat Traps Triggered . | . . . Indirectly . | . . . Trap Hack Attempts . | . . . Triggered . | . . . Disarmed . | . . . Reprogrammed . | . . . Reused . | . . . Traps Extracted . | . . . Installed . | . . . Triggered . | . . . Machines | -11 -10 -9 ---------- Run | Scr Mat Mat Machines Disabled . | . . . Max in Single Turn . | . . . Machines Sabotaged . | . . . Garrisons Compromised . | . . . Overloaded Fab Kills . | . . . Hacking | -11 -10 -9 --------- Run | Scr Mat Mat Machines Accessed 11 | . 7 4 Terminals 11 | . 7 4 Fabricators . | . . . Repair Stations . | . . . Recycling Units . | . . . Scanalyzers . | . . . Garrison Access . | . . . Total Hacks 21 | . 14 7 Successful 14 | . 11 3 Failed 7 | . 3 4 Catastrophic 1 | . . 1 Database Lockouts . | . . . Manual 22 | . 15 7 Terminals 21 | . 14 7 Fabricators . | . . . Repair Stations . | . . . Recycling Units . | . . . Scanalyzers . | . . . Garrison Access . | . . . Terminal Hacks 6 | . 5 1 Record 1 | . . 1 Robot Analysis 3 | . 3 . Branch Access Points 1 | . 1 . Locate Traps 1 | . 1 . Fabricator Hacks . | . . . Repair Station Hacks . | . . . Recycling Unit Hacks . | . . . Scanalyzer . | . . . Garrison Access Hacks . | . . . Unauthorized Hacks 8 | . 6 2 Terminals 8 | . 6 2 Botnet 8 | . 6 2 Fabricators . | . . . Repair Stations . | . . . Recycling Units . | . . . Scanalyzers . | . . . Garrison Access . | . . . Data Cores Recovered . | . . . Used . | . . . Hacking Detections 8 | . 6 2 Full Trace Events . | . . . Feedback Events . | . . . Feedback Blocked . | . . . Robot Schematics Acquired . | . . . Robots Built . | . . . Authchips . | . . . Time . | . . . Total Robot Build Rating . | . . . Part Schematics Acquired . | . . . Parts Built . | . . . Authchips . | . . . Time . | . . . Total Part Build Rating . | . . . Parts Repaired . | . . . Time . | . . . Parts Recycled . | . . . Recycled Matter . | . . . Retrieved Matter . | . . . Retrieved Components . | . . . Parts Scanalyzed . | . . . Part Schematics Acquired . | . . . Parts Damaged . | . . . Bothacking | -11 -10 -9 ------------ Run | Scr Mat Mat Used RIF Installer . | . . . Robots Hacked . | . . . Non-combat . | . . . Combat . | . . . Robot Hacks Applied . | . . . Relay Couplers Released . | . . . Fabnet Peak Effective % . | . . . Robots Rewired . | . . . Allies Hacked . | . . . Hacks Repelled . | . . . Allies | -11 -10 -9 -------- Run | Scr Mat Mat Total Allies . | . . . Largest Group . | . . . Highest-Rated Group . | . . . Highest-Rated Ally . | . . . Total Orders . | . . . Ally Attacks . | . . . Total Damage . | . . . Kills . | . . . Allies Corrupted . | . . . Allies Melted . | . . . Intel | -11 -10 -9 ------- Run | Scr Mat Mat Robot Analysis Total 3 | . 3 . Derelict Logs Recovered . | . . . Drone Launches . | . . . Drone Recoveries . | . . . Exploration | -11 -10 -9 ------------- Run | Scr Mat Mat Turns Passed 2096 | 480 942 674 Spaces Moved 1117 | 155 671 291 Core 38 | 9 . 29 Treads . | . . . Legs 922 | 146 671 105 Wheels . | . . . Hover 3 | . . 3 Flight 154 | . . 154 Fastest Speed 31 | 50 120 31 Average Speed 109 | 115 120 82 Slowest Speed 270 | 120 120 270 Overloaded Moves . | . . . Propulsion Burnouts . | . . . Robots Hopped 1 | . . 1 Cave-ins Triggered . | . . . Exploration Rate (%) 40 | 4 93 25 Regions Visited 2 Branch Regions . Pre-discovered Areas . | . . . Known Exits Taken . | . . . Unknown Exits Taken 2 | 1 1 . Scrap Searched . | . . . Spaces Dug . | . . . Terrain Destroyed . | . . . Melee . | . . . Projectile . | . . . AOE . | . . . Terrain Rammed . | . . . Walls Destroyed . | . . . Machines Disabled . | . . . Actions | -11 -10 -9 --------- Run | Scr Mat Mat Total 1766 | 402 742 622 Wait 464 | 216 19 229 Move 1113 | 154 670 289 Hop 1 | . . 1 Pick Up 9 | . 7 2 Fast Attach 22 | 7 4 11 Attach 8 | . . 8 Detach 13 | . 4 9 Swap 1 | . . 1 Drop 10 | . 4 6 Fire 124 | 25 34 65 Melee . | . . . Ram 1 | . . 1 Kick . | . . . Crush . | . . . Escape Stasis . | . . . Rewire . | . . . Trap . | . . . Miscellaneous . | . . . Route ------- -11/Scrapyard -10/Materials (discovered 5 exits: *Mat x3 / *Min x2) -9/Materials (discovered 1 exit: [*Min]) History --------- Turn | Location | Event 43 | -11/Scrapyard | Discovered new exit (range 16) 481 | -11/Scrapyard | Entered Materials 481 | -10/Materials | Discovered new exit (range 8) 482 | -10/Materials | Build established: Mutant 768 | -10/Materials | Discovered new exit (range 16) 846 | -10/Materials | Discovered new exit (range 8) 923 | -10/Materials | Discovered new exit (range 13) 1142 | -10/Materials | Discovered new exit (range 3) 1324 | -10/Materials | Identified exit to Mines 1423 | -10/Materials | Entered another Materials area 1423 | -9/Materials | Evolved 2 slots: Propulsion x2 1632 | -9/Materials | Discovered new exit (range 6) 1692 | -9/Materials | Core integrity fell below 50% 1742 | -9/Materials | Lost 6 parts (1p4n1w) 1829 | -9/Materials | Core integrity fell below 20% 2097 | -9/Materials | Destroyed by Y-45 Defender with Beam Rifle Last Messages --------------- 01900_ Acquired Lgt. Cannon. 01902_ G-34 Mercenary destroyed. 01904_ K-01 Serf collects debris. 01905_ G-34 Mercenary destroyed. 01909_ U-05 Engineer builds a Door. 01911_ Acquired Aluminum Leg. 01911_ U-05 Engineer builds a Door. 01911_ K-01 Serf collects debris. 01914_ Acquired Aluminum Leg. 01915_ K-01 Serf collects debris. 01917_ Acquired 38 matter. 01918_ K-01 Serf collects debris. 01927_ Acquired Heat Sink. 01935_ K-01 Serf cleans the Machine. 02043_ Acquired 10 matter. 02045_ Acquired Ion Engine. 02050_ Acquired 14 matter. 02060_ Acquired Hover Unit. 02072_ W-16 Scout destroyed. 02088_ Critical hit (Burn: +37). Map ----- +----------------------------------------------------+ | "T" """" # ???????????????????? | | """" + ???????????????????? | | """" # """ ????????????????????? | | # """??????????????????????? | | ############ """??????????????????????? | | ############ % """??????????????????????? | | [ """??????????????????????? | | ???######## ##### /????????????????????? | | ?########## ########## ?#??????????????????? | | ?## ??? ## ###?###### """ #??????????????????? | | ?## # ##??????# """ #??????????????????? | | ?## """ + ##??????#^ """ #??????????????????? | | ?## """ # ######### """ #??????????????????? | | ?## """ ##*###!! #^ """ #??????????????????? | | ??# ##*###!! # #??????????????????? | | ###########%###! # #??????????????????? | | =]*]=# # r +??????????????????? | | !! # + #??????????????????? | | T + ! # #####???????????????????? | | ######### ######## r#####???????????????????? | | ????????# #?????# r"""##???????????????????? | | ????????###+###?????# "##???????????????????? | | ????????? #??????# !"##???????????????????? | | ????????????????????#!!< ""##???????????????????? | | ????????????????????#=%*%!!"##???????????????????? | | ????????????????????#%= a@ "##???????????????????? | | ?????????????######## Y """#????????????????????? | | ?????????????#########%! ########????????????????? | | ?????????????## [=%%%#%[[#= #????????????????? | | ?????????????##!!*!%%+%%%+% #????????????????? | | ?????????????##!=*%*!#%%%#[= #????????????????? | | ?????????????## !==# # """ #????????????????? | | ?????????????## "T" =# [# """ #????????????????? | | ?????????????## """ #% # """ #????????????????? | | ?????????????#########a ########????????????????? | | ?????????????######### #?##????????????????????? | | ?????????????????????# #? ?????????????????????? | | ?????????????????????# # ?????????????????????? | | ?????????????????????# # "?????????????????????? | | ?????????????????????/ + ??????????????????????? | | ?????????????????????# #???????????????????????? | | ????????????????????## ##??????????????????????? | | ##################### #??????????????????????? | | #??????????????????????? | | T #??????????????????????? | | | #??????????????????????? | | ????################# #??????????????????????? | | ????????????????????# #####??????????????????????? | | ????????????????????# #??????????????????????????? | | ????????????????????# #??????????????????????????? | +----------------------------------------------------+ Best States ------------- Heat Dissipation 38 Energy Generation 12 Energy Capacity 265 Matter Stores 300 Matter Capacity 300 Sight Range 16 Terrain Scan Range 16 Terrain Scan Density 10 Armor Coverage 225 Resistance: KI 20 Resistance: TH 20 Resistance: EX 20 Resistance: EM 20 Resistance: I 20 Resistance: S 20 Resistance: P 20 Evasion (%) 63 Offensive Hacking 10 Item Schematics ----------------- None Robot Schematics ------------------ None Fabricated ------------ Nothing Alien Tech Used ----------------- None Achievements -------------- None Challenges ------------ None Game ------ Seed AdvancedMetafieldSegregator Manual? 0 Play Time 00:18:44 Cumulative 45.4 hours Start 2022.05.02 @ 21:09:13 End 2022.05.02 @ 21:30:52 Sessions 1 Manual Loads 0 Difficulty Adventurer Special Mode None Game No. 29 Rogue 0 Adventurer 29 Explorer 0 Win Type - Total 2 Types 1/0/0/1/0/0/0/0/0 Lore% 30 Gallery% 52 Achievement% 49 Wizard Run 0 Options --------- ASCII 0 Keyboard 1 Movement Numpad Keybinds 0 Fullscreen 2 Font 18/SmallcapsGlow Map View 76x50 Tactical HUD 1 Map Filters NONE Filters NONE Steam 0 RUN: 81a0047f-7fc9-4797-833a-aa8fda1f8b5c